bitfinex/quotes_BTCUSD_20241208
["timestamp","ask_amount","ask_price","bid_price","bid_amount"]
[1733690784108,0.60072585,100000.0,99999.0,5.736e-05]
[1733690784320,0.60872585,100000.0,99999.0,0.00205736]
[1733690784764,0.62853972,100000.0,99999.0,0.00205736]
[1733690785679,0.53446716,100000.0,99999.0,0.00205736]
[1733690788996,0.83446716,100000.0,99999.0,0.00205736]
[1733690793537,0.81465329,100000.0,99999.0,0.00205736]
[1733690794691,0.81465329,100000.0,99999.0,5.736e-05]
[1733690794692,0.64020029,100000.0,99999.0,5.736e-05]
[1733690794913,0.40002951,100000.0,99999.0,5.736e-05]
[1733690795126,0.40702951,100000.0,99999.0,0.00205736]
[1733690795340,0.58702951,100000.0,99999.0,0.00205736]
[1733690795959,0.40702951,100000.0,99999.0,0.00205736]
[1733690796163,0.40702951,100000.0,99999.0,0.08245736]
[1733690796164,0.307,100000.0,99999.0,0.08245736]
[1733690796580,0.307,100000.0,99999.0,0.08145736]
[1733690796787,0.3,100000.0,99999.0,0.08045736]
[1733690796995,0.306,100000.0,99999.0,0.10145736]
[1733690797204,0.306,100000.0,99999.0,0.10045736]
[1733690797690,0.3,100000.0,99999.0,0.10145736]
[1733690798189,0.3,100000.0,99999.0,0.10245736]
[1733690798425,0.3,100000.0,99999.0,0.10045736]
[1733690798659,0.3,100000.0,99999.0,0.10545736]
[1733690804754,0.301729,100000.0,99999.0,0.10545736]
[1733690815511,0.301729,100000.0,99999.0,0.02505736]
[1733690826579,0.001729,100000.0,99999.0,0.02505736]
[1733690831142,0.001729,100000.0,99999.0,0.00505736]
[1733690831395,0.35735851,100000.0,99999.0,0.00505736]
[1733690834200,0.35735851,100000.0,99999.0,0.00305736]
[1733690834434,0.35735851,100000.0,99999.0,0.00105736]
[1733690834659,0.35735851,100000.0,99999.0,0.00205736]
[1733690836815,0.17735851,100000.0,99999.0,0.00205736]
[1733690848605,0.35735851,100000.0,99999.0,0.00205736]
[1733690848813,0.40525851,100000.0,99999.0,0.00205736]
[1733690849845,0.49483159,100000.0,99999.0,0.00205736]
[1733690849999,0.49483159,100000.0,99999.0,0.00105736]
[1733690850371,0.49483159,100000.0,99999.0,5.736e-05]
[1733690850839,0.49483159,100000.0,99999.0,0.00105736]
[1733690851090,0.49483159,100000.0,99999.0,5.736e-05]
[1733690851543,0.49483159,100000.0,99999.0,0.00105736]
[1733690852197,0.40825851,100000.0,99999.0,0.00105736]
[1733690853268,0.41825851,100000.0,99999.0,0.00105736]
[1733690874640,0.11475851,100000.0,99999.0,0.00105736]
[1733690874839,0.014729,100000.0,99999.0,0.00105736]
[1733690875871,0.014729,100000.0,99999.0,5.736e-05]
[1733690876068,0.011729,100000.0,99999.0,5.736e-05]
[1733690876295,0.014729,100000.0,99999.0,0.00105736]
[1733690876495,0.014729,100000.0,99999.0,5.736e-05]
[1733690876905,0.011729,100000.0,99999.0,5.736e-05]
[1733690877102,0.011729,100000.0,99999.0,0.00105736]
[1733690881529,0.37175851,100000.0,99999.0,0.00105736]
[1733690882933,0.42045851,100000.0,99999.0,0.00105736]
[1733690883134,0.50994025,100000.0,99999.0,0.00105736]
[1733690883711,0.50994025,100000.0,99999.0,5.736e-05]
[1733690884570,0.42045851,100000.0,99999.0,5.736e-05]
[1733690885484,0.42145851,100000.0,99999.0,5.736e-05]
[1733690886306,0.51096132,100000.0,99999.0,5.736e-05]
[1733690886729,0.61077666,100000.0,99999.0,5.736e-05]
[1733690886956,0.64521553,100000.0,99999.0,5.736e-05]
[1733690887776,0.90422115,100000.0,99999.0,5.736e-05]
[1733690887991,1.20121966,100000.0,99999.0,5.736e-05]
[1733690888200,1.02221404,100000.0,99999.0,5.736e-05]
[1733690888413,1.06696544,100000.0,99999.0,5.736e-05]
[1733690888622,1.06596544,100000.0,99999.0,5.736e-05]
[1733690888856,1.28974097,100000.0,99999.0,5.736e-05]
[1733690889061,1.29174097,100000.0,99999.0,5.736e-05]
[1733690889327,1.39152408,100000.0,99999.0,5.736e-05]
[1733690889576,1.39152408,100000.0,99999.0,0.00105736]
[1733690889577,1.38952408,100000.0,99999.0,0.00105736]
[1733690889812,1.38952408,100000.0,99999.0,5.736e-05]
[1733690889813,1.16578078,100000.0,99999.0,5.736e-05]
[1733690890040,1.17178078,100000.0,99999.0,0.00105736]
[1733690890323,1.17178078,100000.0,99999.0,0.00205736]
[1733690890557,1.16578078,100000.0,99999.0,0.00105736]
[1733690891009,1.18540355,100000.0,99999.0,0.00105736]
[1733690891490,1.18540355,100000.0,99999.0,5.736e-05]
[1733690891949,1.19140355,100000.0,99999.0,0.00105736]
[1733690892205,1.19840355,100000.0,99999.0,0.00205736]
[1733690893719,1.42206729,100000.0,99999.0,0.00205736]
[1733690895321,1.41953672,100000.0,99999.0,0.00205736]
[1733690895554,1.15112707,100000.0,99999.0,0.00205736]
[1733690895788,1.41953672,100000.0,99999.0,0.00205736]
[1733690896226,1.15112707,100000.0,99999.0,0.00205736]
[1733690896436,1.41953672,100000.0,99999.0,0.00205736]
[1733690896840,1.42935008,100000.0,99999.0,0.00205736]
[1733690897251,1.16094043,100000.0,99999.0,0.00205736]
[1733690897969,1.42935008,100000.0,99999.0,0.00205736]
[1733690898375,1.42935008,100000.0,99990.0,0.0008645]
[1733690898376,0.260016,99991.0,99990.0,8.6e-07]
[1733690898573,0.62077663,99991.0,99990.0,8.6e-07]
[1733690898774,0.78002237,99991.0,99990.0,8.6e-07]
[1733690899642,0.81037453,99991.0,99990.0,8.6e-07]
[1733690899877,0.81437453,99991.0,99990.0,8.6e-07]
[1733690900078,0.91418987,99991.0,99990.0,8.6e-07]
[1733690900319,0.91418987,99991.0,99970.0,0.0008644]
[1733690900320,0.356652,99971.0,99970.0,0.0008644]
[1733690900531,0.45668151,99971.0,99970.0,0.00103642]
[1733690902656,0.45668151,99971.0,99970.0,0.00203642]
[1733690902657,0.46568151,99971.0,99970.0,0.00203642]
[1733690902872,0.46568151,99971.0,99970.0,0.00103642]
[1733690903079,0.54586799,99971.0,99970.0,0.00103642]
[1733690903278,0.55990651,99971.0,99970.0,0.00103642]
[1733690904520,0.55990651,99971.0,99970.0,0.00203642]
[1733690904521,0.42972003,99971.0,99970.0,0.00203642]
[1733690904722,0.37388151,99971.0,99970.0,0.00203642]
[1733690904957,0.36988151,99971.0,99970.0,0.00203642]
[1733690905167,0.37488151,99971.0,99970.0,0.00303642]
[1733690905591,0.36988151,99971.0,99970.0,0.00203642]
[1733690905797,0.36088151,99971.0,99970.0,0.00103642]
[1733690906009,0.36388151,99971.0,99970.0,0.00103642]
[1733690906213,0.38296599,99971.0,99970.0,0.00203642]
[1733690915353,0.53296599,99971.0,99970.0,0.00203642]
[1733690924561,0.45216599,99971.0,99970.0,0.00203642]
[1733690926666,0.44208151,99971.0,99970.0,0.00203642]
[1733690927122,0.11202951,99971.0,99970.0,0.00203642]
[1733690927991,0.10302951,99971.0,99970.0,0.00103642]
[1733690928275,0.11002951,99971.0,99970.0,0.00203642]
[1733690928492,0.10702951,99971.0,99970.0,0.00203642]
[1733690928698,0.10702951,99971.0,99970.0,0.00103642]
[1733690928699,0.10002951,99971.0,99970.0,0.00103642]
[1733690928913,0.10302951,99971.0,99970.0,0.00103642]
[1733690930250,0.10402951,99971.0,99970.0,0.00103642]
[1733690930476,0.10702951,99971.0,99970.0,0.00103642]
[1733690930684,0.10302951,99971.0,99970.0,0.00103642]
[1733690935906,0.25302951,99971.0,99970.0,0.00103642]
[1733690936763,0.25002951,99971.0,99970.0,0.00103642]
[1733690936999,0.26792172,99971.0,99970.0,0.00203642]
[1733690937483,0.25992172,99971.0,99970.0,0.00103642]
[1733690937716,0.26592172,99971.0,99970.0,0.00203642]
[1733690938777,0.26792172,99971.0,99970.0,0.00203642]
[1733690950431,0.10802951,99971.0,99970.0,0.00203642]
[1733690951089,0.19012951,99971.0,99970.0,0.00203642]
[1733690951532,0.18812951,99971.0,99970.0,0.00203642]
[1733690951764,0.34012951,99971.0,99970.0,0.00203642]
[1733690952249,0.33812951,99971.0,99970.0,0.00203642]
[1733690952507,0.34012951,99971.0,99970.0,0.00203642]
[1733690953010,0.33412951,99971.0,99970.0,0.00103642]
[1733690953260,0.33912951,99971.0,99970.0,0.00103642]
[1733690953675,0.33412951,99971.0,99970.0,0.00103642]
[1733690953888,0.34112951,99971.0,99970.0,0.00203642]
[1733690957591,0.25902951,99971.0,99970.0,0.00203642]
[1733690963741,0.30742951,99971.0,99970.0,0.00203642]
[1733690963982,0.38742951,99971.0,99970.0,0.00203642]
[1733690964429,0.67934032,99971.0,99970.0,0.00203642]
[1733690964640,0.38742951,99971.0,99970.0,0.00203642]
[1733690965867,0.52181954,99971.0,99970.0,0.00203642]
[1733690967662,0.38742951,99971.0,99970.0,0.00203642]
[1733690972094,0.477011,99971.0,99970.0,0.00203642]
[1733690972621,0.38742951,99971.0,99970.0,0.00203642]
[1733690973336,0.33902951,99971.0,99970.0,0.00203642]
[1733690973560,0.009,99971.0,99970.0,0.02203642]
[1733690974238,0.009,99971.0,99970.0,0.09803642]
[1733690977482,0.00756708,99971.0,99970.0,0.09803642]
[1733690981653,0.15,99983.0,99975.0,0.02]
[1733690981886,0.10002951,99982.0,99975.0,0.02]
[1733690982098,0.10002951,99982.0,99975.0,0.200044]
[1733690983316,0.10702951,99982.0,99975.0,0.201044]
[1733690984886,0.10902951,99982.0,99975.0,0.201044]
[1733690987142,0.10902951,99982.0,99979.0,0.02]
[1733690987800,0.10902951,99982.0,99980.0,0.02]
[1733690987801,0.009,99982.0,99980.0,0.02]
[1733690988002,0.002,99982.0,99981.0,0.02]
[1733690988201,0.0017292,99990.0,99985.0,0.02]
[1733690988409,0.10002951,99989.0,99985.0,0.02]
[1733690989285,0.10002951,99989.0,99985.0,0.200027]
[1733690989459,0.10002951,99989.0,99985.0,0.201027]
[1733690989907,0.10002951,99989.0,99985.0,0.200027]
[1733690990109,0.10002951,99989.0,99985.0,0.201027]
[1733690991131,0.10102951,99989.0,99985.0,0.201027]
[1733690992584,0.001,99989.0,99988.0,0.02]
[1733690994187,0.0017292,99990.0,99989.0,0.200019]
[1733690995816,0.0027292,99990.0,99989.0,0.021]
[1733690996490,0.0027292,99990.0,99989.0,0.02]
[1733690997270,0.0017292,99990.0,99989.0,0.02]
[1733690997655,0.0027292,99990.0,99989.0,0.02]
[1733690997858,0.0017292,99990.0,99989.0,0.021]
[1733690998098,0.0027292,99990.0,99989.0,0.021]
[1733690998301,0.0027292,99990.0,99989.0,0.02]
[1733690998521,0.0027292,99990.0,99989.0,0.021]
[1733690999025,0.0017292,99990.0,99989.0,0.02]
[1733690999243,0.0027292,99990.0,99989.0,0.02]
[1733690999448,0.0027292,99990.0,99989.0,0.021]
[1733691000510,0.0017292,99990.0,99989.0,0.021]
[1733691003038,0.011729,100000.0,99990.0,0.0767]
[1733691003203,0.011729,100000.0,99999.0,0.301501]
[1733691003410,0.0009948,100010.0,100000.0,0.043]
[1733691003629,0.0017302,100020.0,100010.0,0.199982]
[1733691004663,0.00184443,100020.0,100010.0,0.199982]
[1733691005275,0.00184443,100020.0,100010.0,0.200982]
[1733691005479,0.00184443,100020.0,100010.0,0.022]
[1733691005480,0.10187394,100020.0,100010.0,0.022]
[1733691005676,0.40983794,100020.0,100010.0,0.022]
[1733691005933,0.22987394,100020.0,100010.0,0.022]
[1733691006430,0.40983794,100020.0,100010.0,0.022]
[1733691006639,0.40983794,100020.0,100010.0,0.021]
[1733691006855,0.179982,100010.0,100000.0,0.043]
[1733691007064,0.10002951,100010.0,100000.0,0.043]
[1733691008119,0.10202951,100010.0,100000.0,0.043]
[1733691009570,0.28201151,100010.0,100000.0,0.043]
[1733691009814,0.28373991,100010.0,100000.0,0.043]
[1733691013318,0.10375791,100010.0,100000.0,0.043]
[1733691013948,0.28373991,100010.0,100000.0,0.043]
[1733691016211,0.10375791,100010.0,100000.0,0.043]
[1733691018276,0.0037284,100010.0,100000.0,0.04399994]
[1733691019114,0.0037284,100010.0,100000.0,0.043]
[1733691022162,0.0037284,100010.0,100000.0,0.0438641]
[1733691027032,0.00685501,100010.0,100000.0,0.0438641]
[1733691027269,0.0037284,100010.0,100000.0,0.0438641]
[1733691035770,0.28373991,100010.0,100000.0,0.0238641]
[1733691035971,0.40663991,100010.0,100000.0,0.0238641]
[1733691036971,0.49616866,100010.0,100000.0,0.0238641]
[1733691037964,0.49416866,100010.0,100000.0,0.0238641]
[1733691038162,0.49716866,100010.0,100000.0,0.0238641]
[1733691038611,0.49416866,100010.0,100000.0,0.0238641]
[1733691039259,0.49516866,100010.0,100000.0,0.0238641]
[1733691040474,0.4981475,100010.0,100000.0,0.0238641]
[1733691040704,0.40863991,100010.0,100000.0,0.0238641]
[1733691040909,0.5281475,100010.0,100000.0,0.0238641]
[1733691041115,0.71240889,100010.0,100000.0,0.0238641]
[1733691041532,0.89142408,100010.0,100000.0,0.0238641]
[1733691041935,0.89142408,100010.0,100000.0,0.0008641]
[1733691042166,1.11219307,100010.0,100000.0,0.0008641]
[1733691042372,0.83742408,100010.0,100000.0,0.0008641]
[1733691042572,0.84042408,100010.0,100000.0,0.0008641]
[1733691042887,0.83742408,100010.0,100000.0,0.0008641]
[1733691043308,1.06519307,100010.0,100000.0,0.0008641]
[1733691043507,1.11820925,100010.0,100000.0,0.0018641]
[1733691043725,1.11120997,100010.0,100000.0,0.0008641]
[1733691044152,1.12020997,100010.0,100000.0,0.0018641]
[1733691045006,0.63667668,100010.0,100000.0,0.0018641]
[1733691045212,0.86022701,100010.0,100000.0,0.0018641]
[1733691045411,0.681309,100010.0,100000.0,0.0018641]
[1733691046239,0.86022701,100010.0,100000.0,0.0018641]
[1733691046493,0.681309,100010.0,100000.0,0.0018641]
[1733691048811,0.54712049,100010.0,100000.0,0.0018641]
[1733691049890,0.92988402,100010.0,100000.0,0.0018641]
[1733691050110,1.06401975,100010.0,100000.0,0.0018641]
[1733691050399,0.92988402,100010.0,100000.0,0.0018641]
[1733691051127,0.75103638,100010.0,100000.0,0.0018641]
[1733691051617,0.90103638,100010.0,100000.0,0.0018641]
[1733691051878,0.92085424,100010.0,100000.0,0.0018641]
[1733691052406,1.09964708,100010.0,100000.0,0.0018641]
[1733691053103,0.92085424,100010.0,100000.0,0.0018641]
[1733691053566,1.0996621,100010.0,100000.0,0.0018641]
[1733691054566,1.09953486,100010.0,100000.0,0.0018641]
[1733691056825,1.23357509,100010.0,100000.0,0.0018641]
[1733691057007,1.23357634,100010.0,100000.0,0.0018641]
[1733691059539,1.23327434,100010.0,100000.0,0.0018641]
[1733691060674,1.13207175,100010.0,100000.0,0.0018641]
[1733691061347,1.22139676,100010.0,100000.0,0.0018641]
[1733691061814,1.22439368,100010.0,100000.0,0.0018641]
[1733691062744,1.22431482,100010.0,100000.0,0.0018641]
[1733691065671,1.52430482,100010.0,100000.0,0.0018641]
[1733691066123,1.5399435,100010.0,100000.0,0.0018641]
[1733691066336,1.45063931,100010.0,100000.0,0.0018641]
[1733691066761,1.53994402,100010.0,100000.0,0.0018641]
[1733691066969,1.539944,100010.0,100000.0,0.0018641]
[1733691067232,1.45063931,100010.0,100000.0,0.0018641]
[1733691067455,1.53994312,100010.0,100000.0,0.0018641]
[1733691067878,1.5369462,100010.0,100000.0,0.0018641]
[1733691068093,1.44764239,100010.0,100000.0,0.0018641]
[1733691068482,1.54745773,100010.0,100000.0,0.0018641]
[1733691068957,1.44764239,100010.0,100000.0,0.0018641]
[1733691069422,1.53695779,100010.0,100000.0,0.0018641]
[1733691069871,1.44764239,100010.0,100000.0,0.0018641]
[1733691070300,1.45070243,100010.0,100000.0,0.0018641]
[1733691070975,1.54000895,100010.0,100000.0,0.0018641]
[1733691071400,1.55051777,100010.0,100000.0,0.0018641]
[1733691071817,1.6398137,100010.0,100000.0,0.0018641]
[1733691072471,1.55051777,100010.0,100000.0,0.0018641]
[1733691073137,1.45070243,100010.0,100000.0,0.0018641]
[1733691074893,1.31672547,100010.0,100000.0,0.0018641]
[1733691075118,1.45065726,100010.0,100000.0,0.0018641]
[1733691075340,1.31672547,100010.0,100000.0,0.0018641]
[1733691076003,1.13808953,100010.0,100000.0,0.0018641]
[1733691076229,1.31669959,100010.0,100000.0,0.0018641]
[1733691076414,1.23790487,100010.0,100000.0,0.0018641]
[1733691076992,1.23791696,100010.0,100000.0,0.0018641]
[1733691077209,1.23791696,100010.0,100000.0,1e-07]
[1733691077421,1.50588538,100010.0,100000.0,1e-07]
[1733691077629,1.28257836,100010.0,100000.0,1e-07]
[1733691078156,1.27857836,100010.0,100000.0,1e-07]
[1733691078329,0.180034,99981.0,99980.0,0.0008642]
[1733691078514,0.28006351,99981.0,99980.0,0.0008642]
[1733691080983,0.28106351,99981.0,99980.0,0.0008642]
[1733691084597,0.2908396,99981.0,99980.0,0.0008642]
[1733691095087,0.4408396,99981.0,99980.0,0.0008642]
[1733691101373,0.5302814,99981.0,99980.0,0.0008642]
[1733691101638,0.4408396,99981.0,99980.0,0.0008642]
[1733691104716,0.6078814,99981.0,99980.0,0.0008642]
[1733691104956,0.8184296,99981.0,99980.0,0.0008642]
[1733691105443,0.95276311,99981.0,99980.0,0.0008642]
[1733691105898,0.95176311,99981.0,99980.0,0.0008642]
[1733691106103,0.95776311,99981.0,99980.0,0.0008642]
[1733691106330,0.95976311,99981.0,99980.0,0.0008642]
[1733691106536,0.95376311,99981.0,99980.0,0.0008642]
[1733691106817,0.95976311,99981.0,99980.0,0.0008642]
[1733691107639,0.8234296,99981.0,99980.0,0.0008642]
[1733691108182,0.8254296,99981.0,99980.0,0.0008642]
[1733691108333,1.00431321,99981.0,99980.0,0.0008642]
[1733691108539,0.8254296,99981.0,99980.0,0.0008642]
[1733691110891,0.95974366,99981.0,99980.0,0.0008642]
[1733691112414,0.8254296,99981.0,99980.0,0.0008642]
[1733691114757,0.82481051,99981.0,99980.0,0.0008642]
[1733691116788,0.95912393,99981.0,99980.0,0.0008642]
[1733691120129,0.82481051,99981.0,99980.0,0.0008642]
[1733691120417,0.95915214,99981.0,99980.0,0.0008642]
[1733691121526,0.82481051,99981.0,99980.0,0.0008642]
[1733691122411,0.91440376,99981.0,99980.0,0.0008642]
[1733691122608,0.82481051,99981.0,99980.0,0.0008642]
[1733691123857,0.95922505,99981.0,99980.0,0.0008642]
[1733691124077,0.82481051,99981.0,99980.0,0.0008642]
[1733691130771,0.82481051,99981.0,99961.0,0.04401552]
[1733691130986,0.180068,99962.0,99961.0,0.04401552]
[1733691131216,0.28009751,99962.0,99961.0,0.04401552]
[1733691133517,0.28009751,99962.0,99961.0,0.04501552]
[1733691134098,0.28009751,99962.0,99961.0,0.04701552]
[1733691135263,0.180047,99974.0,99961.0,0.06701552]
[1733691135466,0.10002951,99973.0,99969.0,0.02]
[1733691135678,0.10002951,99973.0,99970.0,0.0784]
[1733691136420,0.10002951,99973.0,99969.0,0.02]
[1733691136421,0.30109896,99981.0,99980.0,0.02]
[1733691136622,0.30109896,99981.0,99980.0,0.200036]
[1733691136831,0.30010416,99981.0,99980.0,0.200036]
[1733691137277,0.30010416,99981.0,99980.0,0.2900571]
[1733691137480,0.30010416,99981.0,99980.0,0.200036]
[1733691137841,0.30210416,99981.0,99980.0,0.200036]
[1733691138272,0.30210416,99981.0,99980.0,0.02]
[1733691138741,0.30210416,99981.0,99980.0,0.021]
[1733691139166,0.30010416,99981.0,99980.0,0.021]
[1733691145804,0.30010416,99981.0,99980.0,0.201036]
[1733691147013,0.30010416,99981.0,99980.0,0.021]
[1733691150914,0.30010416,99981.0,99980.0,0.001]
[1733691152273,0.30010416,99981.0,99980.0,0.021]
[1733691167572,0.30010416,99981.0,99980.0,0.1198]
[1733691167687,0.30010416,99981.0,99980.0,0.12080005]
[1733691167894,0.30010416,99981.0,99980.0,0.30262733]
[1733691168095,0.00011416,99981.0,99980.0,0.30162728]
[1733691168346,0.00011416,99981.0,99980.0,0.40065679]
[1733691168563,0.00011416,99981.0,99980.0,0.59727352]
[1733691168738,0.00011416,99981.0,99980.0,0.59927352]
[1733691168941,0.00111416,99981.0,99980.0,0.78177657]
[1733691169542,0.00111416,99981.0,99980.0,0.60227352]
[1733691169818,0.00111416,99981.0,99980.0,0.50224401]
[1733691170018,0.00111416,99981.0,99980.0,0.51988637]
[1733691170170,0.00111416,99981.0,99980.0,0.52388637]
[1733691170375,0.00111416,99981.0,99980.0,0.65847463]
[1733691170777,0.00111416,99981.0,99980.0,0.32723062]
[1733691171195,0.00111416,99981.0,99980.0,0.19264236]
[1733691171760,0.00111416,99981.0,99980.0,0.19364233]
[1733691173720,0.00111416,99981.0,99980.0,0.28336366]
[1733691173901,0.00111416,99981.0,99980.0,0.28236369]
[1733691174331,0.00111416,99981.0,99980.0,0.28097644]
[1733691175692,0.00111416,99981.0,99980.0,0.19125511]
[1733691175916,0.00111416,99981.0,99980.0,0.28199837]
[1733691176136,0.00111416,99981.0,99980.0,0.28099838]
[1733691176358,0.00111416,99981.0,99980.0,0.28099887]
[1733691176560,0.00111416,99981.0,99980.0,0.19125511]
[1733691176764,0.00111416,99981.0,99980.0,0.28200986]
[1733691176974,0.00111416,99981.0,99980.0,0.28100987]
[1733691177392,0.00111416,99981.0,99980.0,0.13500987]
[1733691178601,0.00111416,99981.0,99980.0,0.04525511]
[1733691179692,0.00111416,99981.0,99980.0,0.3767903]
[1733691180626,0.00111416,99981.0,99980.0,0.55627782]
[1733691180840,0.00111416,99981.0,99980.0,0.73604989]
[1733691181019,0.00111416,99981.0,99980.0,0.55656237]
[1733691181601,0.00111416,99981.0,99980.0,0.37688542]
[1733691184656,0.00111416,99981.0,99980.0,0.58057496]
[1733691184893,0.00111416,99981.0,99980.0,0.62627496]
[1733691185133,0.0017292,99990.0,99980.0,0.62627496]
[1733691185377,0.0017292,99990.0,99988.0,0.023]
[1733691185570,0.0017292,99990.0,99989.0,0.53570922]
[1733691185786,0.0017292,99990.0,99989.0,0.7143803]
[1733691186041,0.0017292,99990.0,99989.0,0.73299305]
[1733691186300,0.0017292,99990.0,99989.0,0.55332209]
[1733691187135,0.0017292,99990.0,99989.0,0.55632209]
[1733691188171,0.0017292,99990.0,99989.0,0.55832209]
[1733691189471,0.0017292,99990.0,99989.0,0.22663175]
[1733691189707,0.0017292,99990.0,99989.0,0.36134267]
[1733691190142,0.0017292,99990.0,99989.0,0.69285999]
[1733691190724,0.0017292,99990.0,99989.0,0.55814907]
[1733691191247,0.0017292,99990.0,99989.0,0.7377648]
[1733691191489,0.0017292,99990.0,99989.0,0.69284237]
[1733691192403,0.0017292,99990.0,99989.0,0.36132505]
[1733691192661,0.0017292,99990.0,99989.0,0.20363175]
[1733691193144,0.0017292,99990.0,99989.0,0.29342734]
[1733691194115,0.0017292,99990.0,99989.0,0.20363175]
[1733691197169,0.0017292,99990.0,99989.0,0.29342734]
[1733691198376,0.0017292,99990.0,99989.0,0.20363175]
[1733691198756,0.0017292,99990.0,99989.0,0.29342734]
[1733691199129,0.0017292,99990.0,99989.0,0.20363175]
[1733691199775,0.0017292,99990.0,99989.0,0.29342734]
[1733691201121,0.0017292,99990.0,99989.0,0.005]
[1733691201352,0.0793292,99990.0,99989.0,0.02361275]
[1733691202028,0.0793292,99990.0,99989.0,0.005]
[1733691202029,0.17935871,99990.0,99989.0,0.005]
[1733691204454,0.17935871,99990.0,99989.0,0.02361275]
[1733691204455,0.0793292,99990.0,99989.0,0.02361275]
[1733691204661,0.0017292,99990.0,99989.0,0.02361275]
[1733691207915,0.0017292,99990.0,99989.0,0.03361275]
[1733691209798,0.0017292,99990.0,99989.0,0.015]
[1733691217450,0.0769292,99990.0,99989.0,0.015]
[1733691221801,0.17695871,99990.0,99989.0,0.015]
[1733691222023,0.22635871,99990.0,99989.0,0.015]
[1733691226587,0.37635871,99990.0,99989.0,0.015]
[1733691229261,0.37635871,99990.0,99989.0,0.013]
[1733691229463,0.37635871,99990.0,99989.0,0.01]
[1733691229955,0.37935871,99990.0,99989.0,0.01]
[1733691230633,0.38035871,99990.0,99989.0,0.01]
[1733691251525,0.39014748,99990.0,99989.0,0.01]
[1733691260111,0.34074748,99990.0,99989.0,0.01]
[1733691260362,0.26554748,99990.0,99989.0,0.01]
[1733691264219,0.10575871,99990.0,99989.0,0.01]
[1733691264431,0.0057292,99990.0,99989.0,0.02861275]
[1733691265255,0.0027292,99990.0,99989.0,0.02861275]
[1733691265496,0.0057292,99990.0,99989.0,0.01]
[1733691265918,0.0017292,99990.0,99989.0,0.01]
[1733691266103,0.0027292,99990.0,99989.0,0.01]
[1733691266443,0.0037292,99990.0,99989.0,0.01]
[1733691266645,0.0027292,99990.0,99989.0,0.01]
[1733691266917,0.0027292,99990.0,99989.0,0.02861275]
[1733691274070,0.0027292,99990.0,99989.0,0.02961278]
[1733691274276,0.0027292,99990.0,99989.0,0.02861275]
[1733691275286,0.0017292,99990.0,99989.0,0.02861275]
[1733691275759,0.0017292,99990.0,99989.0,0.03161275]
[1733691275993,0.0017292,99990.0,99989.0,0.02861275]
[1733691276445,0.0017292,99990.0,99989.0,0.03061275]
[1733691276848,0.0017292,99990.0,99989.0,0.02861275]
[1733691277259,0.0017292,99990.0,99989.0,0.03361275]
[1733691277748,0.0017292,99990.0,99989.0,0.03461272]
[1733691277959,0.0017292,99990.0,99989.0,0.03361275]
[1733691278894,0.0017292,99990.0,99989.0,0.03461272]
[1733691279317,0.0017292,99990.0,99989.0,0.03361275]
[1733691290592,0.0017292,99990.0,99989.0,0.03461273]
[1733691290845,0.0017292,99990.0,99989.0,0.03361275]
[1733691298533,0.0017292,99990.0,99989.0,0.05761273]
[1733691298740,0.0017292,99990.0,99989.0,0.22743383]
[1733691298917,0.0017292,99990.0,99989.0,0.2712944]
[1733691299118,0.0017292,99990.0,99989.0,0.64747373]
[1733691300484,0.0017292,99990.0,99989.0,0.46803152]
[1733691300685,0.0017292,99990.0,99989.0,0.46806127]
[1733691303554,0.0017292,99990.0,99989.0,0.64761544]
[1733691303759,0.0017292,99990.0,99989.0,0.46806127]
[1733691304465,0.0017292,99990.0,99989.0,0.46819422]
[1733691305384,0.0017292,99990.0,99989.0,0.6926896]
[1733691305619,0.0017292,99990.0,99989.0,0.6906896]
[1733691305836,0.0017292,99990.0,99989.0,0.6916896]
[1733691306053,0.0017292,99990.0,99989.0,0.6956896]
[1733691306054,0.0027292,99990.0,99989.0,0.6956896]
[1733691306279,0.0027292,99990.0,99989.0,0.6916896]
[1733691306536,0.0017292,99990.0,99989.0,0.6916896]
[1733691306775,0.0027292,99990.0,99989.0,0.47119422]
[1733691306986,0.0027292,99990.0,99989.0,0.69579623]
[1733691307382,0.0017292,99990.0,99989.0,0.69179623]
[1733691307605,0.0017292,99990.0,99989.0,0.46719422]
[1733691308046,0.0017292,99990.0,99989.0,0.46319422]
[1733691308290,0.0017292,99990.0,99989.0,0.46819422]
[1733691308751,0.0017292,99990.0,99989.0,0.46319422]
[1733691308970,0.0027292,99990.0,99989.0,0.47719422]
[1733691309237,0.0017292,99990.0,99989.0,0.46819422]
[1733691309707,0.0027292,99990.0,99989.0,0.47719422]
[1733691312944,0.0027292,99990.0,99989.0,0.39709422]
[1733691313854,0.0027292,99990.0,99989.0,0.37409422]
[1733691314039,0.0027292,99990.0,99989.0,0.04261275]
[1733691314258,0.0027292,99990.0,99989.0,0.22236337]
[1733691314467,0.0027292,99990.0,99989.0,0.55412438]
[1733691314619,0.0027292,99990.0,99989.0,0.37437376]
[1733691315390,0.0027292,99990.0,99989.0,0.39737376]
[1733691318960,0.0027292,99990.0,99989.0,0.39745479]
[1733691320565,0.0027292,99990.0,99989.0,0.62219437]
[1733691321682,0.0027292,99990.0,99989.0,0.57726711]
[1733691322097,0.0027292,99990.0,99989.0,0.39745479]
[1733691323511,0.0027292,99990.0,99989.0,0.57726711]
[1733691328780,0.0027292,99990.0,99989.0,0.39745479]
[1733691330380,0.0027292,99990.0,99989.0,0.35584204]
[1733691330381,0.1310292,99990.0,99989.0,0.35584204]
[1733691330861,0.1310292,99990.0,99989.0,0.024]
[1733691331719,0.1310292,99990.0,99989.0,0.015]
[1733691331720,0.1300292,99990.0,99989.0,0.015]
[1733691332388,0.1300292,99990.0,99989.0,0.01]
[1733691332591,0.1300292,99990.0,99989.0,0.021]
[1733691332592,0.1310292,99990.0,99989.0,0.021]
[1733691332800,0.1300292,99990.0,99989.0,0.014]
[1733691333007,0.1300292,99990.0,99989.0,0.01]
[1733691333439,0.1300292,99990.0,99989.0,0.013]
[1733691333902,0.1300292,99990.0,99989.0,0.01]
[1733691334301,0.1310292,99990.0,99989.0,0.017]
[1733691334507,0.1300292,99990.0,99989.0,0.012]
[1733691334919,0.1300292,99990.0,99989.0,0.015]
[1733691336751,0.1300292,99990.0,99989.0,0.013]
[1733691337736,0.1300292,99990.0,99989.0,0.01]
[1733691338146,0.1310292,99990.0,99989.0,0.01]
[1733691346196,0.23105871,99990.0,99989.0,0.01]
[1733691346579,0.38105871,99990.0,99989.0,0.01]
[1733691356963,0.45208291,99990.0,99989.0,0.01]
[1733691359459,0.46773632,99990.0,99989.0,0.01]
[1733691364779,0.21142125,99981.0,99980.0,0.00097876]
[1733691364988,0.58645076,99981.0,99980.0,0.00097876]
[1733691365290,0.64035475,99981.0,99980.0,0.00097876]
[1733691366345,0.69035475,99981.0,99980.0,7.6e-07]
[1733691367443,0.69935475,99981.0,99980.0,7.6e-07]